[Event "European Blitz-ch 2018"]
[Site "Skopje"]
[Date "2018.12.06"]
[Round "4"]
[White "Popov, Valerij"]
[Black "Arutyunova, Diana"]
[Result "0-1"]
[ECO "A96"]
[WhiteElo "2532"]
[BlackElo "2227"]
[PlyCount "62"]
[EventDate "2018.12.06"]
[EventType "swiss"]
[EventCountry "MKD"]
[TimeControl "180+2"]

1. Nf3 {[%emt 0:00:00]} e6 {[%emt 0:00:02]} 2. c4 {[%emt 0:00:05]} f5 {[%emt 0:00:01]} 3. g3 {[%emt 0:00:02]} Nf6 {[%emt 0:00:01]} 4. Bg2 d6 5. d4 {[%emt 0:00:03]} Be7 {[%emt 0:03:06]} 6. O-O {[%emt 0:00:05]} O-O {[%emt 0:00:00]} 7. Nc3 {[%emt 0:00:00]} Ne4 {[%emt 0:00:00]} 8. Nxe4 {[%emt 0:03:01]} fxe4 {[%emt 0:00:00]} 9. Nd2 {[%emt 0:00:00]} d5 {[%emt 0:00:00]} 10. Qb3 {[%emt 0:00:00]} Nc6 {[%emt 0:00:00]} 11. e3 {[%emt 0:00:00]} Kh8 {[%emt 0:00:00]} 12. f3 {[%emt 0:00:00]} exf3 {[%emt 0:00:00]} 13. Bxf3 {[%emt 0:00:00]} Bg5 {[%emt 0:00:00]} 14. Bg2 {[%emt 0:00:00]} Rxf1+ {[%emt 0:00:00]} 15. Bxf1 {[%emt 0:00:00]} Qf6 {[%emt 0:00:01]} 16. cxd5 {[%emt 0:00:00]} exd5 {[%emt 0:00:06]} 17. Bg2 {[%emt 0:00:00]} Bg4 {[%emt 0:00:06]} 18. h4 {[%emt 0:00:05]} Bh6 {[%emt 0:00:05]} 19. Nf1 {[%emt 0:00:08]} Rf8 {[%emt 0:00:01]} 20. Qc2 {[%emt 0:00:01]} Nb4 {[%emt 0:00:02]} 21. Qd2 {[%emt 0:00:02]} a5 {[%emt 0:00:03]} 22. a3 {[%emt 0:00:12]} Nc6 {[%emt 0:00:00]} 23. Bxd5 {[%emt 0:00:00]} Ne7 {[%emt 0:00:01]} 24. Bg2 {[%emt 0:00:00]} Nf5 {[%emt 0:00:01]} 25. Qd3 {[%emt 0:00:03]} Nxh4 {[%emt 0:00:03]} 26. gxh4 {[%emt 0:00:01]} Qf2+ {[%emt 0:00:01]} 27. Kh1 {[%emt 0:00:01]} Qxh4+ {[%emt 0:00:00]} 28. Nh2 {[%emt 0:00:01]} Qe1+ {[%emt 0:00:04]} 29. Bf1 {[%emt 0:00:05]} Bf5 {[%emt 0:00:03]} 30. Qd2 {[%emt 0:00:02]} Be4+ {[%emt 0:00:01]} 31. Kg1 {[%emt 0:00:05]} Qg3+ {[%emt 0:00:02]} 0-1

[Event "European Blitz-ch 2018"]
[Site "Skopje"]
[Date "2018.12.06"]
[Round "4"]
[White "Kutirov, Rolando"]
[Black "Georgiev, Kiril"]
[Result "0-1"]
[ECO "A46"]
[WhiteElo "2316"]
[BlackElo "2595"]
[Annotator "RC"]
[PlyCount "112"]
[EventDate "2018.12.06"]
[EventType "swiss"]
[EventCountry "MKD"]
[SourceTitle "playchess.com"]
[Source "ChessBase"]
[SourceQuality "1"]
[TimeControl "180+2"]

1. d4 {[%emt 0:00:00]} Nf6 {[%emt 0:00:00]} 2. Nf3 {[%emt 0:00:00]} e6 {[%emt 0:00:02]} 3. Bg5 {[%emt 0:00:01]} h6 {[%emt 0:00:02]} 4. Bh4 {[%emt 0:00:00]} d6 {[%emt 0:00:02]} 5. Nbd2 {[%emt 0:00:02]} g5 {[%emt 0:00:03]} 6. Bg3 {[%emt 0:00:01]} Nh5 {[%emt 0:00:01]} 7. e3 {[%emt 0:00:01]} Bg7 {[%emt 0:00:02]} 8. c3 {[%emt 0:00:24]} f5 {[%emt 0:00:11]} 9. Ng1 {[%emt 0:00:04]} Nxg3 {[%emt 0:00:03]} 10. hxg3 Qe7 {[%emt 0:00:08]} 11. Qh5+ {[%emt 0:00:04]} Qf7 {[%emt 0:00:02]} 12. Qxf7+ {[%emt 0:00:02]} Kxf7 {[%emt 0:00:01]} 13. Bc4 {[%emt 0:00:00]} Nd7 {[%emt 0:00:07]} 14. O-O-O {[%emt 0:00:02]} Nf6 {[%emt 0:00:03]} 15. f3 {[%emt 0:00:09]} d5 {[%emt 0:00:17]} 16. Bd3 {[%emt 0:00:02]} Bd7 {[%emt 0:00:04]} 17. Nh3 {[%emt 0:00:02]} Rac8 {[%emt 0:00:05]} 18. Kb1 {[%emt 0:00:04]} c5 {[%emt 0:00:01]} 19. Rhf1 {[%emt 0:00:02]} Ke7 {[%emt 0:00:10]} 20. Rde1 {[%emt 0:00:02]} b5 {[%emt 0:00:03]} 21. dxc5 {[%emt 0:00:04]} Rxc5 {[%emt 0:00:02]} 22. Nf2 {[%emt 0:00:06]} e5 {[%emt 0:00:23]} 23. Nb3 {[%emt 0:00:04]} Rc7 {[%emt 0:00:03]} 24. e4 {[%emt 0:00:08]} dxe4 {[%emt 0:00:04]} 25. fxe4 {[%emt 0:00:01]} f4 {[%emt 0:00:01]} 26. gxf4 {[%emt 0:00:03]} gxf4 {[%emt 0:00:13]} 27. Rg1 {[%emt 0:00:12]} Rf8 {[%emt 0:00:05]} 28. Be2 {[%emt 0:00:05]} Bc6 {[%emt 0:00:06]} 29. Bf3 {[%emt 0:00:02]} Ne8 {[%emt 0:00:18]} 30. Nd3 {[%emt 0:00:02]} Bf6 {[%emt 0:00:04]} 31. Nb4 {[%emt 0:00:01]} Nd6 {[%emt 0:00:07]} 32. Nd5+ {[%emt 0:00:17]} Bxd5 {[%emt 0:00:03]} 33. exd5 {[%emt 0:00:01]} Nc4 {[%emt 0:00:04]} 34. Nd4 {[%emt 0:00:10]} Rd7 {[%emt 0:00:06]} 35. Nf5+ {[%emt 0:00:08]} Kd8 {[%emt 0:00:03]} 36. Nxh6 {[%emt 0:00:02]} Nd2+ {[%emt 0:00:14]} 37. Kc2 {[%emt 0:00:01]} Nxf3 {[%emt 0:00:01]} 38. gxf3 {[%emt 0:00:01]} Rxd5 {[%emt 0:00:02]} 39. Rd1 {[%emt 0:00:02]} Rxd1 {[%emt 0:00:02]} 40. Rxd1+ {[%emt 0:01:48]} Ke7 {[%emt 0:00:02]} 41. Ng4 {[%emt 0:00:00]} Rh8 {[%emt 0:00:05]} 42. Rd5 {[%emt 0:00:00]} Ke6 {[%emt 0:00:03]} 43. Rxb5 {[%emt 0:00:00]} Rh3 {[%emt 0:00:01]} 44. Ra5 {[%emt 0:00:00]} Bh8 {[%emt 0:00:05]} 45. Rxa7 {[%emt 0:00:00]} Rxf3 {[%emt 0:00:05]} 46. Rh7 {[%emt 0:00:00]} Rg3 {[%emt 0:00:05]} 47. Nh2 {[%emt 0:00:00]} Bf6 {[%emt 0:00:05]} 48. a4 {[%emt 0:00:00]} Rg2+ {[%emt 0:00:04]} 49. Kd3 {[%emt 0:00:00]} Rxb2 {[%emt 0:00:03]} 50. Nf3 {[%emt 0:00:00]} Ra2 {[%emt 0:00:05]} 51. Ra7 {[%emt 0:00:00]} Kf5 {[%emt 0:00:06]} 52. Ra5 {[%emt 0:00:00]} Ra1 {[%emt 0:00:03]} 53. Nd4+ {[%emt 0:00:00]} Kg4 {[%emt 0:00:01]} 54. Nc6 {[%emt 0:00:00]} f3 {[%emt 0:00:03]} 55. Ke3 {[%emt 0:00:00]} Re1+ {[%emt 0:00:02]} 56. Kf2 {[%emt 0:00:00]} Bh4# {[%emt 0:00:01]} 0-1